fUST/lending_fUST_20241011
["ID","MTS","AMOUNT","RATE_DAILY","PERIOD"]
[340111158,1728585038804,-250.0,0.00031038,2]
[340111159,1728585038815,-250.0,0.00031123,2]
[340111160,1728585038825,-250.0,0.00031209,2]
[340111161,1728585038835,-250.0,0.00031294,2]
[340111163,1728585038845,-250.0,0.00031379,2]
[340111164,1728585038856,-250.0,0.00031464,2]
[340111165,1728585038866,-3000.0,0.00031516,2]
[340111166,1728585038875,-250.0,0.00031549,2]
[340111167,1728585038885,-274.14277431,0.00031556,2]
[340111168,1728585038894,-250.0,0.00031634,2]
[340111169,1728585038904,-250.0,0.00031656,2]
[340111170,1728585038914,-250.0,0.00031719,2]
[340111171,1728585038924,-250.0,0.00031804,2]
[340111172,1728585038934,-250.0,0.0003189,2]
[340111173,1728585038943,-250.0,0.00031975,2]
[340111174,1728585038953,-250.0,0.0003206,2]
[340111175,1728585038962,-250.0,0.00032145,2]
[340111176,1728585038972,-250.0,0.0003223,2]
[340111177,1728585038982,-274.14277431,0.00032271,2]
[340111178,1728585038991,-250.0,0.00032315,2]
[340111179,1728585039000,-250.0,0.000324,2]
[340111180,1728585039010,-250.0,0.00032485,2]
[340111181,1728585039019,-250.0,0.00032571,2]
[340111182,1728585039044,-250.0,0.00032656,2]
[340111183,1728585039054,-400.0,0.00032983,2]
[340111184,1728585039064,-400.0,0.00032983,2]
[340111185,1728585039073,-3975.36638249,0.00032984,2]
[340111186,1728585039086,-274.14277431,0.00032985,2]
[340111187,1728585039096,-500.0,0.00032999,7]
[340111188,1728585039105,-206.80075322,0.00032999,7]
[340111189,1728585039115,-500.0,0.00032999,7]
[340111190,1728585039125,-430.67182285,0.00033,2]
[340111191,1728585039138,-1479.82702808,0.00033,2]
[340111192,1728585039150,-580.0,0.00033,2]
[340111193,1728585039162,-14796.832,0.00033,2]
[340111194,1728585039174,-55773.13542481,0.00033,2]
[340111218,1728585043696,-1167.49999999,0.00033,2]
[340111265,1728585402221,104737.4024985,0.0003,30]
[340111270,1728585924270,194.07337087,0.0003,7]
[340111281,1728586179957,500.0,0.000284,5]
[340111282,1728586179998,315.84027575,0.0002977,5]
[340111318,1728586231833,-164.435845,0.00025442,2]
[340111320,1728586231843,-250.0,0.00026419,2]
[340111322,1728586231856,-250.0,0.00026492,2]
[340111324,1728586231866,-250.0,0.00026564,2]
[340111326,1728586231876,-250.0,0.00026637,2]
[340111329,1728586231887,-250.0,0.00026709,2]
[340111332,1728586231896,-166.666666,0.00026754,2]
[340111335,1728586231906,-250.0,0.00026781,2]
[340111338,1728586231918,-300.0,0.00026829,2]
[340111340,1728586231928,-300.0,0.00026829,2]
[340111342,1728586231937,-7522.902189,0.0002683,2]
[340111344,1728586231950,-13062.26879985,0.0002683,2]
[340111360,1728586238157,-4314.82901115,0.0002683,2]
[340111361,1728586238168,-250.0,0.00026854,2]
[340111362,1728586238177,-250.0,0.00026926,2]
[340111363,1728586238187,-183.138452,0.00026973,2]
[340111364,1728586238196,-250.0,0.00026999,2]
[340111365,1728586238205,-250.0,0.00027071,2]
[340111366,1728586238215,-250.0,0.00027144,2]
[340111367,1728586238225,-250.0,0.00027216,2]
[340111368,1728586238238,-250.0,0.00027289,2]
[340111369,1728586238247,-250.0,0.00027361,2]
[340111370,1728586238256,-250.0,0.00027434,2]
[340111371,1728586238266,-250.0,0.00027506,2]
[340111372,1728586238276,-4396.85806124,0.00027551,2]
[340111373,1728586238286,-250.0,0.00027579,2]
[340111374,1728586238296,-250.0,0.00027629,2]
[340111375,1728586238305,-250.0,0.00027651,2]
[340111376,1728586238315,-250.0,0.00027724,2]
[340111377,1728586238324,-250.0,0.00027796,2]
[340111378,1728586238334,-3000.0,0.00028694,2]
[340111379,1728586238344,-420.0,0.0002901,2]
[340111380,1728586238355,-420.0,0.00029512,2]
[340111381,1728586238365,-587.0,0.00031369,2]
[340111382,1728586238374,-587.0,0.00032463,2]
[340111383,1728586238383,-6057.98686308,0.00032678,2]
[340111384,1728586238393,-223.58390269,0.00032777,2]
[340111385,1728586238402,-270.0,0.00032843,2]
[340111386,1728586238413,-184.96680296,0.00032877,2]
[340111387,1728586238423,-4396.85806118,0.00032887,2]
[340111388,1728586238432,-5828.73277583,0.00033,2]
[340111389,1728586238442,-823.0,0.00033919,2]
[340111390,1728586238451,-263.393657,0.00034795,2]
[340111391,1728586238461,-744.63397963,0.00034849,120]
[340111392,1728586238470,-823.0,0.0003571,2]
[340111393,1728586238480,-347.0,0.0003589,2]
[340111394,1728586238489,-347.0,0.00036,2]
[340111395,1728586238499,-716.5142,0.00036088,30]
[340111396,1728586238508,-259.4311217,0.0003624,2]
[340111397,1728586238517,-1152.0,0.00036677,2]
[340111398,1728586238527,-8530.66999211,0.00037235,120]
[340111399,1728586238536,-400.0,0.00037235,120]
[340111400,1728586238545,-500.0,0.00037242,5]
[340111401,1728586238554,-347.0,0.00037397,2]
[340111402,1728586238564,-500.0,0.00037487,5]
[340111403,1728586238574,-500.0,0.00037838,5]
[340111404,1728586238583,-401.2122906,0.00038,120]
[340111405,1728586238594,-4396.85806118,0.00038222,2]
[340111406,1728586238605,-454.50000455,0.00038304,4]
[340111407,1728586238615,-603.18528446,0.00038343,4]
[340111408,1728586238624,-150.01,0.00038649,2]
[340111409,1728586238635,-1080.46719445,0.00038649,2]
[340111410,1728586238644,-606.00000606,0.00038687,6]
[340111411,1728586238654,-829.72491228,0.000387,2]
[340111412,1728586238663,-252.72,0.00038739,3]
[340111413,1728586238673,-758.16,0.00038739,3]
[340111414,1728586238683,-26124.7807229,0.00038749,5]
[340111415,1728586238695,-13097.97405804,0.00038749,5]
[340111416,1728586238717,-376.4153791,0.00038749,5]
[340111428,1728586239837,-257.49989431,0.00038749,5]
[340111429,1728586239849,-24711.34940875,0.00038749,5]
[340111430,1728586239859,-237.44604849,0.00038759,15]
[340111431,1728586239868,-500.0,0.00038759,15]
[340111432,1728586239878,-500.0,0.00038759,15]
[340111433,1728586239887,-500.0,0.00038759,15]
[340111434,1728586239897,-500.0,0.00038759,15]
[340111435,1728586239907,-500.0,0.00038759,15]
[340111436,1728586239917,-164.75046628,0.00038759,15]
[340111437,1728586239926,-500.0,0.00038759,15]
[340111438,1728586239936,-500.0,0.00038759,15]
[340111439,1728586239945,-500.0,0.00038759,15]
[340111440,1728586239958,-500.0,0.00038759,15]
[340111441,1728586239967,-500.0,0.00038759,15]
[340111442,1728586239977,-500.0,0.00038759,15]
[340111443,1728586239987,-500.0,0.00038759,15]
[340111444,1728586240089,-650.0,0.00038759,15]
[340111445,1728586240121,-953.2381417,0.0003876,25]
[340111446,1728586240133,-41157.64995345,0.0003876,5]
[340111447,1728586240148,-6050.3,0.0003876,5]
[340111467,1728586242925,-2094.25000657,0.0003876,5]
[340111468,1728586242938,-2450.0,0.0003876,5]
[340111471,1728586245928,-26622.14220868,0.0003876,5]
[340111472,1728586245938,-115329.71622,0.0003876,5]
[340111473,1728586245948,-300.0,0.0003877,30]
[340111474,1728586245960,-26124.7807229,0.0003877,5]
[340111475,1728586245971,-38443.2387402,0.0003877,5]
[340111476,1728586245981,-500.0,0.00038773,5]
[340111477,1728586245990,-153.909099,0.0003878,14]
[340111478,1728586246000,-151.988228,0.0003878,14]
[340111479,1728586246010,-151.0,0.0003878,14]
[340111480,1728586246020,-26124.7807229,0.0003878,5]
[340111481,1728586246029,-38443.2387402,0.0003878,5]
[340111482,1728586246040,-1563.25963826,0.00038787,10]
[340111483,1728586246050,-151.0,0.00038787,14]
[340111484,1728586246059,-151.0,0.00038787,14]
[340111485,1728586246069,-151.0,0.0003879,14]
[340111486,1728586246080,-151.0,0.0003879,14]
[340111487,1728586246090,-151.0,0.0003879,14]
[340111488,1728586246099,-401.740604,0.0003879,14]
[340111489,1728586246110,-401.740604,0.0003879,14]
[340111490,1728586246120,-151.0,0.0003879,14]
[340111491,1728586246130,-151.0,0.0003879,14]
[340111492,1728586246139,-151.0,0.0003879,14]
[340111493,1728586246149,-151.0,0.0003879,14]
[340111494,1728586246159,-9853.48895142,0.0003879,5]
[340111496,1728586246171,-873.43897344,0.0003879,5]
[340111498,1728586246183,-67647.41424384,0.0003879,5]
[340111500,1728586246193,-38443.2387402,0.0003879,5]
[340111502,1728586246203,-151.0,0.0003879,14]
[340111503,1728586246212,-462.321543,0.0003879,14]
[340111504,1728586246222,-462.321543,0.0003879,14]
[340111505,1728586246231,-462.865024,0.0003879,14]
[340111506,1728586246241,-462.865024,0.0003879,14]
[340111507,1728586246251,-151.0,0.0003879,14]
[340111508,1728586246261,-4243.11333411,0.000388,7]
[340111509,1728586246273,-7878.09515014,0.000388,7]
[340111532,1728587432057,-165.054179,0.00029572,2]
[340111533,1728587432067,-2911.72773678,0.00029586,2]
[340111534,1728587432119,-88.27226322,0.00029586,2]
[340111535,1728587432130,-227.07944057,0.00029681,2]
[340111536,1728587432141,-181.333178,0.00029781,2]
[340111537,1728587432151,-166.666666,0.00031051,2]
[340111538,1728587432161,-250.0,0.00031192,2]
[340111539,1728587432172,-182.34375068,0.00031632,2]
[340111540,1728587432185,-398.01324335,0.00031632,2]
[340111541,1728587432197,-636.53625817,0.00031632,2]
[340111548,1728587438082,-749.1159061,0.00031632,2]
[340111550,1728587438092,-400.0,0.00031785,2]
[340111551,1728587438102,-400.0,0.00031785,2]
[340111552,1728587438111,-22.02767125,0.00031787,2]
[340111566,1728587440069,-24877.97232875,0.00031787,2]
[340111567,1728587440079,-2748.03628829,0.00031915,2]
[340111568,1728587440089,-250.0,0.00032015,2]
[340111569,1728587440099,-250.0,0.00032103,2]
[340111570,1728587440109,-250.0,0.00032191,2]
[340111571,1728587440118,-250.0,0.00032279,2]
[340111572,1728587440128,-250.0,0.00032366,2]
[340111574,1728587440139,-250.0,0.00032454,2]
[340111576,1728587440148,-250.0,0.00032542,2]
[340111578,1728587440157,-250.0,0.0003263,2]
[340111580,1728587440167,-250.0,0.00032718,2]
[340111581,1728587440176,-250.0,0.00032805,2]
[340111583,1728587440186,-250.0,0.00032893,2]
[340111584,1728587440195,-250.0,0.00032981,2]
[340111585,1728587440205,-250.0,0.00033069,2]
[340111586,1728587440214,-250.0,0.00033157,2]
[340111587,1728587440224,-250.0,0.00033244,2]
[340111588,1728587440235,-250.0,0.00033332,2]
[340111589,1728587440244,-250.0,0.0003342,2]
[340111590,1728587440254,-250.0,0.00033508,2]
[340111591,1728587440264,-250.0,0.00033596,2]
[340111592,1728587440274,-250.0,0.00033683,2]
[340111593,1728587440284,-560.0,0.00034194,2]
[340111594,1728587440294,-286.610438,0.00034795,2]
[340111595,1728587440310,-560.0,0.00034964,2]
[340111596,1728587440321,-193.50084066,0.00036186,2]
[340111597,1728587440331,-291.7453674,0.00036286,2]
[340111598,1728587440341,-2748.03628823,0.00036735,2]
[340111599,1728587440350,-783.0,0.00036786,2]
[340111600,1728587440360,-454.45456363,0.00037178,4]
[340111601,1728587440369,-454.45456363,0.00037549,4]
[340111602,1728587440379,-454.45456363,0.00037921,4]
[340111603,1728587440388,-217.0,0.00038,2]
[340111604,1728587440398,-1973.0,0.00038,120]
[340111605,1728587440408,-454.45456363,0.00038064,4]
[340111606,1728587440422,-454.45456363,0.00038293,4]
[340111607,1728587440438,-10113.03252248,0.00038412,2]
[340111608,1728587440452,-454.45456363,0.00038445,4]
[340111609,1728587440467,-783.0,0.0003846,30]
[340111610,1728587440481,-157.4884242,0.00038493,2]
[340111611,1728587440495,-217.0,0.0003863,14]
[340111612,1728587440510,-497.23806392,0.00038665,6]
[340111613,1728587440521,-5000.0,0.00038678,7]
[340111614,1728587440532,-283.27514122,0.00038699,2]
[340111615,1728587440544,-810.35039583,0.00038699,2]
[340111616,1728587440558,-746.75242107,0.000387,2]
[340111617,1728587440570,-198.93608576,0.00038773,5]
[340111618,1728587440581,-500.0,0.00038773,5]
[340111619,1728587440594,-500.0,0.00038773,5]
[340111620,1728587440605,-500.0,0.00038773,5]
[340111621,1728587440618,-206.52,0.0003878,3]
[340111622,1728587440630,-619.61,0.0003878,3]
[340111623,1728587440641,-500.0,0.00038789,15]
[340111624,1728587440653,-237.44604849,0.00038789,15]
[340111625,1728587440665,-500.0,0.00038789,15]
[340111626,1728587440677,-500.0,0.00038789,15]
[340111627,1728587440690,-500.0,0.00038789,15]
[340111628,1728587440701,-500.0,0.00038789,15]
[340111629,1728587440713,-500.0,0.00038789,15]
[340111630,1728587440725,-500.0,0.00038789,15]
[340111631,1728587440735,-500.0,0.00038789,15]
[340111632,1728587440754,-500.0,0.00038789,15]
[340111633,1728587440765,-500.0,0.00038789,15]
[340111634,1728587440777,-500.0,0.00038789,15]
[340111635,1728587440789,-500.0,0.00038789,15]
[340111636,1728587440802,-500.0,0.00038789,15]
[340111637,1728587440813,-500.0,0.00038789,15]
[340111638,1728587440825,-499.42513988,0.00038789,15]
[340111639,1728587440837,-2038.73084271,0.0003879,5]
[340111701,1728587583675,276.0,0.00027397,30]
[340111702,1728587628466,-250.0,0.00031588,2]
[340111703,1728587628497,-272.279916,0.00034795,2]
[340111704,1728587628522,-163.0,0.00038,2]
[340111705,1728587628546,-605.87884241,0.00038596,6]
[340111706,1728587628572,-163.0,0.0003863,14]
[340111707,1728587628597,-2061.02721619,0.0003869,2]
[340111708,1728587628623,-26570.88738484,0.0003869,2]
[340111709,1728587628649,-400.0,0.00038698,30]
[340111710,1728587628672,-283.27514122,0.00038699,2]
[340111711,1728587628694,-810.35039583,0.00038699,2]
[340111712,1728587628717,-500.0,0.00038773,5]
[340111713,1728587628742,-198.93608576,0.00038773,5]
[340111714,1728587628780,-500.0,0.00038773,5]
[340111715,1728587628803,-762.85,0.0003878,3]
[340111716,1728587628829,-5438.86171228,0.0003878,5]
[340111717,1728587628854,-299.82754196,0.00038789,15]
[340111718,1728587628880,-450.0,0.00038789,15]
[340111719,1728587628907,-450.0,0.00038789,15]
[340111720,1728587628933,-450.0,0.00038789,15]
[340111721,1728587628957,-450.0,0.00038789,15]
[340111722,1728587628983,-953.2381417,0.0003879,25]
[340111723,1728587629005,-381.41,0.0003879,3]
[340111724,1728587629028,-190.71,0.0003879,3]
[340111725,1728587629053,-572.13,0.0003879,3]
[340111726,1728587629077,-19036.015993,0.0003879,5]
[340111727,1728587629101,-601709.32162881,0.000388,7]
[340111741,1728588434946,-400.0,0.00032332,2]
[340111742,1728588434974,-400.0,0.00032332,2]
[340111743,1728588434999,-24900.0,0.00032333,2]
[340111744,1728588435025,-181.333179,0.00032333,2]
[340111745,1728588435052,-306.5946388,0.00032877,2]
[340111746,1728588435213,-3000.0,0.00033349,2]
[340111747,1728588435240,-560.0,0.00034763,2]
[340111748,1728588435266,-268.771287,0.00034795,2]
[340111749,1728588435295,-170.4651225,0.00035508,2]
[340111750,1728588435321,-560.0,0.00035565,2]
[340111751,1728588435345,-250.0,0.0003587,2]
[340111752,1728588435373,-250.0,0.00035968,2]
[340111753,1728588435398,-250.0,0.00036067,2]
[340111754,1728588435424,-2598.47209068,0.00036164,2]
[340111755,1728588435457,-250.0,0.00036165,2]
[340111756,1728588435483,-250.0,0.00036264,2]
[340111757,1728588435510,-250.0,0.00036362,2]
[340111758,1728588435536,-250.0,0.0003646,2]
[340111759,1728588435562,-250.0,0.00036559,2]
[340111760,1728588435588,-250.0,0.00036657,2]
[340111761,1728588435613,-250.0,0.00036755,2]
[340111762,1728588435639,-250.0,0.00036854,2]
[340111763,1728588435666,-250.0,0.00036952,2]
[340111764,1728588445101,-250.0,0.00037051,2]
[340111765,1728588445126,-250.0,0.00037149,2]
[340111766,1728588445150,-250.0,0.00037247,2]
[340111767,1728588445175,-250.0,0.00037346,2]
[340111768,1728588445199,-783.0,0.00037377,2]
[340111769,1728588445222,-250.0,0.00037444,2]
[340111770,1728588445246,-250.0,0.00037543,2]
[340111771,1728588445270,-250.0,0.00037641,2]
[340111772,1728588445295,-250.0,0.00037739,2]
[340111773,1728588489356,-205.30999,0.00036502,2]
[340111774,1728588489382,-205.30999,0.00036602,2]
[340111775,1728588489406,-205.30999,0.00036702,2]
[340111776,1728588489430,-205.30999,0.00036802,2]
[340111777,1728588489454,-205.30999,0.00036902,2]
[340111778,1728588489478,-205.30999,0.00037002,2]
[340111779,1728588489502,-205.30999,0.00037103,2]
[340111780,1728588489527,-205.30999,0.00037203,2]
[340111781,1728588489551,-205.30999,0.00037303,2]
[340111782,1728588489575,-205.30999,0.00037403,2]
[340111783,1728588489599,-205.30999,0.00037503,2]
[340111784,1728588489625,-205.30999,0.00037603,2]
[340111785,1728588489650,-454.40913181,0.00037659,4]
[340111786,1728588489673,-205.30999,0.00037703,2]
[340111787,1728588489703,-205.30999,0.00037803,2]
[340111788,1728588489730,-400.0,0.00037903,2]
[340111789,1728588489754,-400.0,0.00037903,2]
[340111790,1728588489785,-205.30999,0.00037903,2]
[340111795,1728588512152,875.15075384,0.0003,15]
[340111796,1728588517315,-205.30999,0.00038004,2]
[340111797,1728588517339,-454.40913181,0.00038035,4]
[340111798,1728588519379,13599.84709204,0.00023,2]
[340111799,1728588520710,17492.73848636,0.0001,2]
[340111800,1728588520744,3703.79677056,0.0001,2]
[340111920,1728588639498,-0.99699786,0.00034795,2]
[340111968,1728589189648,1996.0,0.00039722,7]
[340112150,1728589432000,150.0,0.0003969,120]
[340112175,1728589832270,-170.018632,0.00030226,2]
[340112176,1728589832280,-170.018632,0.00030541,2]
[340112177,1728589832290,-3000.0,0.00030801,2]
[340112178,1728589832299,-170.018632,0.00030856,2]
[340112179,1728589832310,-170.018632,0.00031171,2]
[340112180,1728589832319,-170.018632,0.00031486,2]
[340112182,1728589832328,-170.018632,0.00031801,2]
[340112184,1728589832338,-363.0,0.0003254,2]
[340112186,1728589832347,-400.0,0.0003254,2]
[340112187,1728589832357,-1194.26156838,0.00032541,2]
[340112321,1728589870910,500.00000001,0.00039667,3]
[340112333,1728591032456,-300.0,0.00028769,2]
[340112334,1728591032467,-300.0,0.00028769,2]
[340112335,1728591032477,-24900.0,0.0002877,2]
[340112336,1728591032488,-3000.0,0.00029376,2]
[340112337,1728591032499,-420.0,0.00031046,2]
[340112338,1728591032509,-4046.06530789,0.00032054,2]
[340112339,1728591032520,-5050.55180807,0.00032137,2]
[340112340,1728591032532,-4046.0653079,0.00032261,2]
[340112341,1728591032544,-165.054179,0.00032541,2]
[340112342,1728591032559,-250.0,0.00033102,2]
[340112343,1728591032570,-587.0,0.00033503,2]
[340112344,1728591032580,-886.99618793,0.00034793,2]
[340112345,1728591032592,-341.400297,0.00034795,2]
[340112346,1728591032602,-853.51868553,0.00034893,50]
[340112347,1728591032612,-886.99618792,0.00035565,2]
[340112348,1728591032621,-823.0,0.00036155,2]
[340112349,1728591032631,-886.99618792,0.00036336,2]
[340112350,1728591032641,-307.2167757,0.00036712,2]
[340112351,1728591032651,-5050.55180804,0.00036839,2]
[340112352,1728591032660,-886.99618792,0.00037108,2]
[340112353,1728591032671,-1000.0,0.000375,2]
[340112354,1728591032680,-209.8716294,0.00037534,2]
[340112355,1728591032690,-153.0,0.00037534,2]
[340112356,1728591032699,-153.0,0.00037534,2]
[340112357,1728591032708,-886.99618792,0.00037879,2]
[340112358,1728591032718,-1000.0,0.0003788,2]
[340112359,1728591032727,-424.90878913,0.00037959,3]
[340112374,1728591038831,-196.03121087,0.00037959,3]
[340112375,1728591038842,-310.47,0.00037959,3]
[340112376,1728591038853,-310.47,0.00037959,3]
[340112377,1728591038863,-555.78,0.0003796,10]
[340112378,1728591038876,-500.0,0.00037969,15]
[340112379,1728591038887,-500.0,0.00037969,15]
[340112380,1728591038898,-500.0,0.00037969,15]
[340112381,1728591038908,-404.88087514,0.00037969,15]
[340112382,1728591038919,-500.0,0.00037969,15]
[340112383,1728591038930,-500.0,0.00037969,15]
[340112384,1728591038941,-500.0,0.00037969,15]
[340112385,1728591038951,-500.0,0.00037969,15]
[340112386,1728591038962,-500.0,0.00037969,15]
[340112387,1728591038971,-210.63137433,0.00037969,15]
[340112388,1728591038981,-500.0,0.00037969,15]
[340112389,1728591038992,-500.0,0.00037969,15]
[340112390,1728591039004,-500.0,0.00037969,15]
[340112391,1728591039014,-500.0,0.00037969,15]
[340112392,1728591039024,-500.0,0.00037969,15]
[340112393,1728591039033,-500.0,0.00037969,15]
[340112394,1728591039044,-500.0,0.00037969,15]
[340112395,1728591039054,-343.07257416,0.00037969,15]
[340112396,1728591039066,-156.92742584,0.00037969,15]
[340112397,1728591039075,-500.0,0.00037969,15]
[340112398,1728591039085,-500.0,0.00037969,15]
[340112399,1728591039095,-500.0,0.00037969,15]
[340112400,1728591039104,-500.0,0.00037969,15]
[340112401,1728591039113,-500.0,0.00037969,15]
[340112402,1728591039122,-500.0,0.00037969,15]
[340112403,1728591039131,-500.0,0.00037969,15]
[340112404,1728591039140,-500.0,0.00037969,15]
[340112405,1728591039153,-1833.36306099,0.0003797,5]
[340112442,1728591300692,-223.86504,0.00035494,2]
[340112443,1728591335201,-2394.13496,0.00035493,2]
[340112444,1728591533623,-164.181981,0.00033456,2]
[340112445,1728591537667,-500.0,0.00037969,15]
[340112446,1728591537694,-500.0,0.00037969,15]
[340112447,1728591537720,-301.18126381,0.00037969,15]
[340112448,1728591537743,-500.0,0.00037969,15]
[340112449,1728591537769,-548.63568255,0.00037969,15]
[340112450,1728591537793,-259.77154732,0.00037969,15]
[340112451,1728591537816,-500.0,0.00037969,15]
[340112452,1728591537842,-365.63512257,0.00037969,15]
[340112453,1728591537871,-548.63568255,0.00037969,15]
[340112454,1728591537894,-548.63568255,0.00037969,15]
[340112455,1728591537918,-548.63568255,0.00037969,15]
[340112456,1728591537942,-548.63568255,0.00037969,15]
[340112457,1728591537967,-548.63568255,0.00037969,15]
[340112458,1728591537989,-241.42090089,0.00037969,15]
[340112459,1728591538017,-548.63568255,0.00037969,15]
[340112460,1728591538042,-548.63568255,0.00037969,15]
[340112461,1728591538065,-641.47085236,0.00037969,15]
[340112462,1728591538090,-548.63568255,0.00037969,15]
[340112463,1728591538114,-548.63568255,0.00037969,15]
[340112464,1728591538138,-548.63568255,0.00037969,15]
[340112465,1728591538162,-548.63568255,0.00037969,15]
[340112466,1728591538186,-548.63568255,0.00037969,15]
[340112467,1728591538215,-548.63568255,0.00037969,15]
[340112468,1728591538239,-548.63568255,0.00037969,15]
[340112469,1728591538262,-548.63568255,0.00037969,15]
[340112470,1728591538285,-548.63568255,0.00037969,15]
[340112471,1728591538309,-548.63568255,0.00037969,15]
[340112472,1728591538332,-548.63568255,0.00037969,15]
[340112473,1728591538355,-548.63568255,0.00037969,15]
[340112474,1728591538377,-548.63568255,0.00037969,15]
[340112475,1728591538400,-548.63568255,0.00037969,15]
[340112476,1728591538423,-1571.52450782,0.00037969,15]
[340112477,1728591538453,-1571.52450782,0.00037969,15]
[340112478,1728591538476,-1571.52450782,0.00037969,15]
[340112479,1728591538499,-1571.52450782,0.00037969,15]
[340112480,1728591538523,-1571.52450782,0.00037969,15]
[340112481,1728591538545,-1571.52450782,0.00037969,15]
[340112482,1728591538569,-462.865024,0.00037979,14]
[340112483,1728591538592,-462.865024,0.00037979,14]
[340112484,1728591538615,-462.865024,0.00037979,14]
[340112485,1728591538638,-151.0,0.00037979,14]
[340112486,1728591538661,-151.0,0.00037979,14]
[340112487,1728591538684,-151.0,0.00037979,14]
[340112488,1728591538712,-462.865024,0.00037979,14]
[340112489,1728591538737,-462.865024,0.00037979,14]
[340112490,1728591538761,-462.865024,0.00037979,14]
[340112491,1728591538786,-151.0,0.00037979,14]
[340112492,1728591538809,-462.321543,0.00037979,14]
[340112493,1728591538834,-462.321543,0.00037979,14]
[340112494,1728591538857,-462.321543,0.00037979,14]
[340112495,1728591538880,-462.321543,0.00037979,14]
[340112496,1728591538995,-462.321543,0.00037979,14]
[340112497,1728591539018,-462.321543,0.00037979,14]
[340112498,1728591539041,-151.0,0.00037979,14]
[340112499,1728591539063,-151.0,0.00037979,14]
[340112500,1728591539087,-151.0,0.00037979,14]
[340112501,1728591539110,-152.332513,0.00037979,14]
[340112502,1728591539133,-361.566543,0.00037979,14]
[340112503,1728591539156,-361.566543,0.00037979,14]
[340112504,1728591539178,-361.566543,0.00037979,14]
[340112505,1728591539202,-361.566543,0.00037979,14]
[340112506,1728591539225,-361.566543,0.00037979,14]
[340112507,1728591539249,-151.0,0.00037979,14]
[340112508,1728591539274,-151.0,0.00037979,14]
[340112509,1728591539297,-151.0,0.00037979,14]
[340112510,1728591539320,-151.0,0.00037979,14]
[340112511,1728591539343,-151.0,0.00037979,14]
[340112512,1728591539367,-361.566543,0.00037979,14]
[340112513,1728591539391,-361.566543,0.00037979,14]
[340112514,1728591539416,-361.566543,0.00037979,14]
[340112515,1728591539443,-361.566543,0.00037979,14]
[340112516,1728591539469,-361.566543,0.00037979,14]
[340112517,1728591539495,-151.0,0.0003798,14]
[340112518,1728591539523,-151.0,0.0003798,14]
[340112519,1728591539548,-462.865024,0.0003798,14]
[340112520,1728591539574,-462.865024,0.0003798,14]
[340112521,1728591539603,-462.865024,0.0003798,14]
[340112522,1728591539628,-151.0,0.0003798,14]
[340112523,1728591539655,-151.0,0.0003798,14]
[340112524,1728591539680,-151.0,0.0003798,14]
[340112525,1728591539711,-462.865024,0.0003798,14]
[340112526,1728591539737,-462.865024,0.0003798,14]
[340112527,1728591539762,-462.865024,0.0003798,14]
[340112528,1728591539789,-462.321543,0.0003798,14]
[340112529,1728591539816,-462.321543,0.0003798,14]
[340112530,1728591539842,-462.321543,0.0003798,14]
[340112531,1728591539868,-462.321543,0.0003798,14]
[340112532,1728591539894,-361.566543,0.0003798,14]
[340112533,1728591539920,-361.566543,0.0003798,14]
[340112534,1728591539945,-361.566543,0.0003798,14]
[340112535,1728591539971,-151.0,0.0003798,14]